bitfinex-derivatives/quotes_BTCF0:USTF0_20230701
["timestamp","ask_amount","ask_price","bid_price","bid_amount"]
[1688253287988,1.13186356,30603.0,30602.0,0.02800004]
[1688253289195,0.85135936,30603.0,30602.0,0.02800004]
[1688253289388,0.85135936,30603.0,30602.0,0.04622973]
[1688253289694,0.85135936,30603.0,30602.0,0.06507918]
[1688253294688,0.85135936,30603.0,30602.0,0.42587918]
[1688253295995,0.85135936,30603.0,30602.0,0.06507918]
[1688253296194,0.85135936,30603.0,30602.0,0.42587918]
[1688253296396,0.85135936,30603.0,30602.0,0.01622973]
[1688253296597,0.85135936,30603.0,30602.0,0.36717452]
[1688253296787,0.87096536,30603.0,30602.0,0.38678152]
[1688253297290,1.19947197,30603.0,30602.0,0.38678152]
[1688253297485,1.19947197,30603.0,30602.0,0.40501121]
[1688253300094,1.19947197,30603.0,30602.0,0.04421121]
[1688253300302,1.19947197,30603.0,30602.0,0.38678152]
[1688253300690,1.19947197,30603.0,30602.0,0.40501121]
[1688253302302,1.19947197,30603.0,30602.0,0.42386066]
[1688253304495,1.17986597,30603.0,30602.0,0.40501121]
[1688253304791,1.17986597,30603.0,30602.0,0.38678152]
[1688253305390,1.19947197,30603.0,30602.0,0.38678152]
[1688253305801,1.19947197,30603.0,30602.0,0.40501121]
[1688253306694,1.13186356,30603.0,30602.0,0.42386066]
[1688253307197,1.11225756,30603.0,30602.0,0.42386066]
[1688253307703,0.85135936,30603.0,30602.0,0.06306066]
[1688253308296,0.85135936,30603.0,30602.0,0.04421121]
[1688253311206,0.85135936,30603.0,30602.0,0.40501121]
[1688253311705,0.85135936,30603.0,30602.0,0.42386066]
[1688253311909,0.94115936,30603.0,30602.0,0.77696066]
[1688253312101,0.48346996,30603.0,30602.0,0.77586066]
[1688253312299,0.15633475,30603.0,30602.0,0.77586066]
[1688253312701,0.17133475,30603.0,30602.0,0.77586066]
[1688253313001,0.17133475,30603.0,30602.0,0.77025295]
[1688253314004,0.52443475,30603.0,30602.0,0.77025295]
[1688253314499,0.52443475,30603.0,30602.0,0.7514035]
[1688253315195,0.52283475,30603.0,30602.0,0.38519229]
[1688253315504,0.71854419,30603.0,30602.0,0.38519229]
[1688253315901,0.52283475,30603.0,30602.0,0.40342198]
[1688253316206,0.52283475,30603.0,30602.0,0.42227143]
[1688253318110,0.52283475,30603.0,30602.0,0.06147143]
[1688253318305,0.52283475,30603.0,30602.0,0.42227143]
[1688253318610,0.76805583,30603.0,30602.0,0.35519229]
[1688253318908,0.78766183,30603.0,30602.0,0.37841647]
[1688253319209,1.11108027,30603.0,30602.0,0.37841647]
[1688253319910,0.87674142,30603.0,30602.0,0.37841647]
[1688253321202,0.87674142,30603.0,30602.0,0.02322418]
[1688253321502,0.85713542,30603.0,30602.0,0.04145387]
[1688253322109,0.85713542,30603.0,30602.0,0.06030332]
[1688253323112,0.84213542,30603.0,30602.0,0.06030332]
[1688253323609,0.84213542,30603.0,30602.0,0.04207363]
[1688253323911,1.07030518,30603.0,30602.0,0.06030332]
[1688253325723,1.07030518,30603.0,30602.0,0.04207363]
[1688253326221,1.07030518,30603.0,30602.0,0.06030332]
[1688253326919,1.07030518,30603.0,30602.0,0.04207363]
[1688253327513,1.07030518,30603.0,30602.0,0.02322418]
[1688253328919,1.07030518,30603.0,30602.0,0.38402418]
[1688253329123,1.07030518,30603.0,30602.0,0.42110332]
[1688253329320,1.07030518,30603.0,30602.0,0.40287363]
[1688253329917,1.07030518,30603.0,30602.0,0.42110332]
[1688253330117,1.07030518,30603.0,30602.0,0.40287363]
[1688253330527,1.07030518,30603.0,30602.0,0.42110332]
[1688253331829,1.07030518,30603.0,30602.0,0.06030332]
[1688253332032,1.07030518,30603.0,30602.0,0.42110332]
[1688253332426,0.75290518,30603.0,30602.0,0.42110332]
[1688253332627,0.52473542,30603.0,30602.0,0.77130332]
[1688253332822,0.47741182,30603.0,30602.0,0.77130332]
[1688253333023,0.67304351,30603.0,30602.0,0.77130332]
[1688253333526,0.7034657,30603.0,30602.0,0.77130332]
[1688253333927,0.3519657,30603.0,30602.0,0.77130332]
[1688253334828,0.15633401,30603.0,30602.0,0.77130332]
[1688253335024,0.20365731,30603.0,30602.0,0.77130332]
[1688253340630,0.20365731,30603.0,30602.0,0.41050332]
[1688253340834,0.20365731,30603.0,30602.0,0.77130332]
[1688253341325,0.35199692,30603.0,30602.0,0.77130332]
[1688253342325,0.32157473,30603.0,30602.0,0.77130332]
[1688253343826,0.67307473,30603.0,30602.0,0.77130332]
[1688253345517,0.70349609,30603.0,30602.0,0.77130332]
[1688253346930,0.50783318,30603.0,30602.0,0.77130332]
[1688253347337,0.70349609,30603.0,30602.0,0.77130332]
[1688253349438,0.50783318,30603.0,30602.0,0.77130332]
[1688253349830,0.70349609,30603.0,30602.0,0.77130332]
[1688253352038,0.50783318,30603.0,30602.0,0.77130332]
[1688253352337,0.70349609,30603.0,30602.0,0.77130332]
[1688253353826,0.35199609,30603.0,30602.0,0.77130332]
[1688253356837,0.15633318,30603.0,30602.0,0.77130332]
[1688253363845,0.50943318,30603.0,30602.0,0.77130332]
[1688253364740,0.70509609,30603.0,30602.0,0.77130332]
[1688253367442,0.70509609,30603.0,30602.0,1.13210332]
[1688253368633,0.70509609,30603.0,30602.0,0.41050332]
[1688253368835,0.70509609,30603.0,30602.0,1.13210332]
[1688253369048,0.70509609,30603.0,30602.0,0.41050332]
[1688253369249,0.70509609,30603.0,30602.0,1.13210332]
[1688253370741,0.70509609,30603.0,30602.0,1.15782782]
[1688253372344,0.50943318,30603.0,30602.0,1.15782782]
[1688253372943,0.82443318,30603.0,30602.0,1.15782782]
[1688253373546,1.02009609,30603.0,30602.0,1.15782782]
[1688253373847,0.66699609,30603.0,30602.0,1.15782782]
[1688253374348,0.47133318,30603.0,30602.0,1.15782782]
[1688253375648,0.66699609,30603.0,30602.0,1.15782782]
[1688253378446,0.66699609,30603.0,30602.0,1.13210332]
[1688253384845,0.66699609,30603.0,30602.0,0.41050332]
[1688253385051,0.66699609,30603.0,30602.0,1.13210332]
[1688253387359,0.47133318,30603.0,30602.0,1.13210332]
[1688253389559,0.51865361,30603.0,30602.0,0.41050332]
[1688253389757,0.51865361,30603.0,30602.0,1.13210332]
[1688253391665,0.47133318,30603.0,30602.0,1.13210332]
[1688253394665,0.47133318,30603.0,30602.0,0.41050332]
[1688253394864,0.47133318,30603.0,30602.0,1.13210332]
[1688253395052,0.66727676,30603.0,30602.0,1.13210332]
[1688253396464,0.66727676,30603.0,30602.0,0.41050332]
[1688253396678,0.66727676,30603.0,30602.0,1.13210332]
[1688253400859,0.66727676,30603.0,30602.0,0.41050332]
[1688253401060,0.66727676,30603.0,30602.0,0.77130332]
[1688253402166,0.66727676,30603.0,30602.0,0.41050332]
[1688253402363,0.66727676,30603.0,30602.0,0.77130332]
[1688253402665,0.51865402,30603.0,30602.0,0.77130332]
[1688253406972,0.51865402,30603.0,30602.0,0.41050332]
[1688253407174,0.51865402,30603.0,30602.0,1.13210332]
[1688253409173,0.51865402,30603.0,30602.0,0.41050332]
[1688253409378,0.51865402,30603.0,30602.0,0.77130332]
[1688253409976,0.66728944,30603.0,30602.0,0.77130332]
[1688253410380,0.47133318,30603.0,30602.0,0.77130332]
[1688253410576,0.66729404,30603.0,30602.0,0.77130332]
[1688253413687,0.66729404,30603.0,30602.0,1.13210332]
[1688253416191,0.47133318,30603.0,30602.0,1.13210332]
[1688253417189,0.47133318,30603.0,30602.0,0.77130332]
[1688253417587,0.51865386,30603.0,30602.0,0.77130332]
[1688253419783,0.86985386,30603.0,30602.0,0.38402418]
[1688253420100,1.09802362,30603.0,30602.0,0.38402418]
[1688253420986,1.11762962,30603.0,30602.0,0.38402418]
[1688253421582,1.11762962,30603.0,30602.0,0.40225387]
[1688253421890,1.11762962,30603.0,30602.0,0.04145387]
[1688253422185,1.11762962,30603.0,30602.0,0.38402418]
[1688253422390,1.11762962,30603.0,30602.0,0.40225387]
[1688253422896,1.11762962,30603.0,30602.0,0.38402418]
[1688253423084,1.11762962,30603.0,30602.0,0.40225387]
[1688253423678,1.11762962,30603.0,30602.0,0.38402418]
[1688253423882,1.11762962,30603.0,30602.0,0.40225387]
[1688253424285,1.11762962,30603.0,30602.0,0.38402418]
[1688253424990,0.88945986,30603.0,30602.0,0.38402418]
[1688253425596,0.88945986,30603.0,30602.0,0.04145387]
[1688253425792,0.88945986,30603.0,30602.0,0.06030332]
[1688253426091,0.88945986,30603.0,30602.0,0.40287363]
[1688253426293,0.88945986,30603.0,30602.0,0.42110332]
[1688253427998,0.88945986,30603.0,30602.0,0.40287363]
[1688253428492,0.88945986,30603.0,30602.0,0.40225387]
[1688253428883,0.88945986,30603.0,30602.0,0.04145387]
[1688253429091,0.88945986,30603.0,30602.0,0.40225387]
[1688253429498,0.88945986,30603.0,30602.0,0.38402418]
[1688253430293,0.88945986,30603.0,30602.0,0.40225387]
[1688253431000,0.88945986,30603.0,30602.0,0.04145387]
[1688253431301,0.88945986,30603.0,30602.0,0.38402418]
[1688253431695,0.88945986,30603.0,30602.0,0.40225387]
[1688253435411,0.88945986,30603.0,30602.0,0.38402418]
[1688253435805,0.88945986,30603.0,30602.0,0.02322418]
[1688253436002,0.88945986,30603.0,30602.0,0.38402418]
[1688253436409,0.88945986,30603.0,30602.0,0.40225387]
[1688253436714,0.88945986,30603.0,30602.0,0.38402418]
[1688253437012,0.88945986,30603.0,30602.0,0.40225387]
[1688253437515,0.88945986,30603.0,30602.0,0.02322418]
[1688253437709,0.88945986,30603.0,30602.0,0.38402418]
[1688253438305,0.88945986,30603.0,30602.0,0.40225387]
[1688253440011,0.88945986,30603.0,30602.0,0.38402418]
[1688253440613,1.11762962,30603.0,30602.0,0.38402418]
[1688253441117,1.12364806,30603.0,30602.0,0.38402418]
[1688253441308,1.12364806,30603.0,30600.0,0.40921114]
[1688253441309,1.2562783,30603.0,30600.0,0.00049014]
[1688253441510,0.63391091,30601.0,30600.0,0.00049014]
[1688253441719,0.77926061,30601.0,30600.0,0.00049014]
[1688253442126,0.71165295,30601.0,30600.0,0.00049014]
[1688253442326,0.45646748,30601.0,30600.0,0.00049014]
[1688253444029,0.68475445,30601.0,30600.0,0.00049014]
[1688253447723,0.68475445,30601.0,30600.0,0.02009814]
[1688253448024,0.45646748,30601.0,30600.0,0.02009814]
[1688253452241,0.4091468,30601.0,30600.0,0.02009814]
[1688253453629,0.45647715,30601.0,30600.0,0.02009814]
[1688253454332,0.45647715,30601.0,30600.0,0.00049014]
[1688253454736,1.17284856,30601.0,30600.0,0.00049014]
[1688253455236,1.17284856,30601.0,30600.0,0.0004147]
[1688253455736,1.19937155,30601.0,30600.0,0.0004147]
[1688253456240,1.55247155,30601.0,30595.0,0.019611]
[1688253456429,1.55247155,30601.0,30593.0,0.419635]
[1688253456430,0.3531,30596.0,30593.0,0.3608]
[1688253456629,0.3508,30594.0,30593.0,0.3608]
[1688253456943,0.37643044,30594.0,30593.0,0.380412]
[1688253457724,0.69283044,30594.0,30593.0,0.380412]
[1688253458231,0.85564702,30594.0,30593.0,0.380412]
[1688253458433,0.69283044,30594.0,30593.0,0.380412]
[1688253458829,0.69283044,30594.0,30593.0,0.019612]
[1688253460143,0.85560426,30594.0,30593.0,0.019612]
[1688253462635,0.69283044,30594.0,30593.0,0.019612]
[1688253463440,0.69283044,30594.0,30593.0,0.02911253]
[1688253466938,0.686812,30594.0,30593.0,0.02911253]
[1688253467451,0.71243144,30594.0,30593.0,0.02911253]
[1688253467649,0.71844988,30594.0,30593.0,0.02911253]
[1688253469151,0.71844988,30594.0,30593.0,0.02621751]
[1688253469857,0.848611,30594.0,30593.0,0.02621751]
[1688253470149,0.84258767,30594.0,30593.0,0.02621751]
[1688253470645,0.71243144,30594.0,30593.0,0.02621751]
[1688253470842,0.84259384,30594.0,30593.0,0.02621751]
[1688253471041,0.71243144,30594.0,30593.0,0.02621751]
[1688253471643,0.84259348,30594.0,30593.0,0.02621751]
[1688253472151,0.82298148,30594.0,30593.0,0.02621751]
[1688253473353,0.50658148,30594.0,30593.0,0.0444472]
[1688253473552,0.50658148,30594.0,30593.0,0.06329665]
[1688253474744,0.50658148,30594.0,30593.0,0.0444472]
[1688253475644,0.50658148,30594.0,30593.0,0.02621751]
[1688253475844,0.50658148,30594.0,30593.0,0.0444472]
[1688253477357,0.37641944,30594.0,30593.0,0.0444472]
[1688253478150,0.53919326,30594.0,30593.0,0.0444472]
[1688253478360,0.53919326,30594.0,30593.0,0.38701751]
[1688253479766,0.55880526,30594.0,30593.0,0.38701751]
[1688253480265,0.55880526,30594.0,30593.0,0.42409665]
[1688253480649,0.55880526,30594.0,30593.0,0.40586696]
[1688253480856,0.55880526,30594.0,30593.0,0.38701751]
[1688253481354,0.8781237,30594.0,30593.0,0.38701751]
[1688253481662,0.87210526,30594.0,30593.0,0.38701751]
[1688253482163,0.70933144,30594.0,30593.0,0.38701751]
[1688253486155,0.73976086,30594.0,30593.0,0.38701751]
[1688253486768,0.73976086,30594.0,30593.0,0.02621751]
[1688253488966,0.73976086,30594.0,30593.0,0.0444472]
[1688253489573,0.73976086,30594.0,30593.0,0.02621751]
[1688253492763,0.7457793,30594.0,30593.0,0.02621751]
[1688253493573,0.73976086,30594.0,30593.0,0.02621751]
[1688253494372,0.73976086,30594.0,30593.0,0.06329665]
[1688253494966,0.73976086,30594.0,30593.0,0.04506696]
[1688253495553,0.73976086,30594.0,30593.0,0.06329665]
[1688253496070,0.73976086,30594.0,30593.0,0.04506696]
[1688253497157,0.73976086,30594.0,30593.0,0.40586696]
[1688253497558,0.73976086,30594.0,30593.0,0.42409665]
[1688253497863,0.73976086,30594.0,30593.0,0.38701751]
[1688253498374,0.93522291,30594.0,30593.0,0.38701751]
[1688253498968,0.93522291,30594.0,30593.0,0.40586696]
[1688253499572,0.93522291,30594.0,30593.0,0.38701751]
[1688253499966,0.93522291,30594.0,30593.0,0.02621751]
[1688253500168,0.73976086,30594.0,30593.0,0.02621751]
[1688253500470,0.93522291,30594.0,30593.0,0.02621751]
[1688253501677,0.93522291,30594.0,30593.0,0.04506696]
[1688253502178,0.93522291,30594.0,30593.0,0.06329665]
[1688253505067,0.93522291,30594.0,30593.0,0.02621751]
[1688253505267,0.93522291,30594.0,30593.0,0.38701751]
[1688253505478,0.93522291,30594.0,30593.0,0.4052472]
[1688253505676,0.93522291,30594.0,30593.0,0.38701751]
[1688253506578,0.93522291,30594.0,30593.0,0.42409665]
[1688253507572,0.73976086,30594.0,30593.0,0.06329665]
[1688253507874,0.7870948,30594.0,30593.0,0.42409665]
[1688253508070,0.60271117,30594.0,30593.0,0.77399665]
[1688253508269,0.4938299,30594.0,30593.0,0.77399665]
[1688253508481,0.29796759,30594.0,30593.0,0.77399665]
[1688253508774,0.27234815,30594.0,30593.0,0.77399665]
[1688253511581,0.27234815,30594.0,30593.0,1.13479665]
[1688253512278,0.27234815,30594.0,30593.0,0.41319665]
[1688253512676,0.27234815,30594.0,30593.0,1.13479665]
[1688253513884,0.38352942,30594.0,30593.0,1.13689665]
[1688253515074,0.16316358,30594.0,30593.0,1.13689665]
[1688253515274,0.19635261,30597.0,30593.0,1.13689665]
[1688253515275,0.16316358,30595.0,30593.0,1.13689665]
[1688253515580,0.16316358,30595.0,30594.0,0.38697914]
[1688253515777,0.16316358,30596.0,30594.0,0.40659114]
[1688253516083,0.16316358,30596.0,30595.0,0.372011]
[1688253516289,0.16316358,30596.0,30595.0,0.40909014]
[1688253516467,0.16316358,30596.0,30595.0,0.41873921]
[1688253517885,0.16316358,30596.0,30595.0,1.14033921]
[1688253519677,0.16365388,30597.0,30595.0,1.14033921]
[1688253519885,0.16365388,30597.0,30596.0,0.3531]
[1688253520075,0.16365388,30597.0,30596.0,0.40978914]
[1688253520488,0.65212775,30597.0,30596.0,0.40978914]
[1688253523392,0.65212775,30597.0,30596.0,0.41943191]
[1688253524395,0.0004903,30597.0,30596.0,0.42593191]
[1688253524699,0.13087138,30597.0,30596.0,0.42593191]
[1688253527497,0.13087138,30597.0,30596.0,0.41943191]
[1688253528598,0.0004903,30597.0,30596.0,0.41943191]
[1688253530095,0.13087138,30597.0,30596.0,0.41943191]
[1688253530295,0.0004903,30597.0,30596.0,0.41943191]
[1688253537614,0.09819667,30597.0,30596.0,0.41943191]
[1688253541024,0.09819667,30597.0,30596.0,1.14103191]
[1688253545123,0.0004903,30597.0,30596.0,1.14103191]
[1688253547729,0.13087138,30597.0,30596.0,1.14103191]
[1688253549119,0.09823395,30597.0,30596.0,1.46783191]
[1688253549321,0.0004903,30597.0,30596.0,1.46783191]
[1688253553016,0.0004903,30597.0,30596.0,0.74623191]
[1688253553215,0.0004903,30597.0,30596.0,1.46783191]
[1688253553423,0.0004903,30597.0,30596.0,0.74623191]
[1688253553626,0.0004903,30597.0,30596.0,1.46783191]
[1688253557832,0.09823395,30597.0,30596.0,1.46783191]
[1688253559821,0.09823395,30597.0,30596.0,1.53318218]
[1688253561234,0.09823395,30597.0,30596.0,0.81158218]
[1688253561428,0.09823395,30597.0,30596.0,1.53318218]
[1688253567727,0.0004903,30597.0,30596.0,1.53318218]
[1688253572038,0.0004903,30597.0,30596.0,0.81158218]
[1688253572240,0.0004903,30597.0,30596.0,1.53318218]
[1688253574237,0.0004903,30597.0,30596.0,0.81158218]
[1688253574439,0.0004903,30597.0,30596.0,1.53318218]
[1688253575529,0.0004903,30597.0,30596.0,0.81158218]
[1688253575840,0.0004903,30597.0,30596.0,1.53318218]
[1688253581142,0.0004903,30597.0,30596.0,0.81158218]
[1688253581345,0.3239903,30597.0,30596.0,0.81158218]
[1688253581638,0.3239903,30597.0,30596.0,1.53318218]
[1688253581846,0.3239903,30597.0,30596.0,1.46783191]
[1688253582152,0.3239903,30597.0,30596.0,1.53317674]
[1688253583846,0.45437138,30597.0,30596.0,1.53317674]
[1688253584448,0.3239903,30597.0,30596.0,1.53317674]
[1688253584647,0.45437138,30597.0,30596.0,1.53317674]
[1688253585050,0.3239903,30597.0,30596.0,1.53317674]
[1688253585245,0.45437138,30597.0,30596.0,1.53317674]
[1688253586354,0.45437138,30597.0,30596.0,1.20637674]
[1688253586540,0.45437138,30597.0,30596.0,1.16930982]
[1688253586961,0.45437138,30597.0,30596.0,1.18815927]
[1688253587746,0.45437138,30597.0,30596.0,1.20638896]
[1688253589555,0.3239903,30597.0,30596.0,1.20638896]
[1688253589756,0.3239903,30597.0,30596.0,0.48478896]
[1688253590057,0.3239903,30597.0,30596.0,1.20638896]
[1688253590242,0.45454535,30597.0,30596.0,1.20638896]
[1688253591554,0.45454535,30597.0,30596.0,0.48478896]
[1688253591845,0.45454535,30597.0,30596.0,1.20638896]
[1688253593364,0.3239903,30597.0,30596.0,1.20638896]
[1688253598360,0.3239903,30597.0,30596.0,0.48478896]
[1688253598559,0.3239903,30597.0,30596.0,1.20638896]
[1688253599152,0.3239903,30597.0,30596.0,0.48478896]
[1688253599361,0.3239903,30597.0,30596.0,1.20638896]
[1688253599969,0.3239903,30597.0,30596.0,0.48478896]
[1688253600163,0.3239903,30597.0,30596.0,1.20638896]
[1688253605857,0.3239903,30597.0,30596.0,0.48478896]
[1688253606065,0.3239903,30597.0,30596.0,1.20041219]
[1688253609376,0.3239903,30597.0,30596.0,0.47881219]
[1688253609573,0.3239903,30597.0,30596.0,1.20041219]
[1688253609978,0.3239903,30597.0,30596.0,0.47881219]
[1688253610361,0.3239903,30597.0,30596.0,1.20041219]
[1688253611777,0.45461074,30597.0,30596.0,1.20041219]
[1688253614982,0.45461074,30597.0,30596.0,1.13505514]
[1688253615885,0.45461074,30597.0,30596.0,0.41345514]
[1688253616085,0.45461074,30597.0,30596.0,1.13505514]
[1688253620285,0.3239903,30597.0,30596.0,1.20043297]
[1688253621587,0.3239903,30597.0,30596.0,0.47883297]
[1688253621798,0.3239903,30597.0,30596.0,1.20043297]
[1688253622788,0.3239903,30597.0,30596.0,0.47883297]
[1688253622977,0.3239903,30597.0,30596.0,1.20043297]
[1688253626895,0.3239903,30597.0,30596.0,1.13505514]
[1688253626896,0.45462967,30597.0,30596.0,1.13505514]
[1688253627194,0.3239903,30597.0,30596.0,1.13505514]
[1688253627682,0.45463417,30597.0,30596.0,1.23308055]
[1688253631892,0.13113417,30597.0,30596.0,1.23308055]
[1688253634599,0.0004903,30597.0,30596.0,1.23308055]
[1688253635307,0.13113417,30597.0,30596.0,1.23308055]
[1688253637802,0.48176358,30600.0,30596.0,1.48815514]
[1688253638005,0.13064409,30600.0,30599.0,0.7628]
[1688253638302,0.13057399,30602.0,30599.0,0.90987832]
[1688253638503,0.13057399,30602.0,30601.0,0.733507]
[1688253638895,0.13465667,30602.0,30601.0,0.733507]
[1688253639095,0.13465667,30602.0,30601.0,0.77058614]
[1688253641205,0.13987002,30602.0,30601.0,0.77058614]
[1688253642202,0.00929603,30602.0,30601.0,0.77058614]
[1688253648011,0.00929603,30602.0,30601.0,1.13138614]
[1688253661712,0.00929603,30602.0,30601.0,1.11315645]
[1688253662016,0.36239603,30602.0,30601.0,1.094307]
[1688253663022,0.36239603,30602.0,30601.0,1.11315645]
[1688253663416,0.36239603,30602.0,30601.0,1.13138614]
[1688253663819,0.00929603,30602.0,30601.0,1.13138614]
[1688253668233,0.13976855,30602.0,30601.0,1.13138614]
[1688253671424,0.13976855,30602.0,30601.0,1.094307]
[1688253671934,0.15937455,30602.0,30601.0,1.094307]
[1688253672334,0.13976855,30602.0,30601.0,1.094307]
[1688253672734,0.00929603,30602.0,30601.0,1.094307]
[1688253672927,0.00929603,30602.0,30601.0,1.11315645]
[1688253673127,0.00929603,30602.0,30601.0,1.13138614]
[1688253673835,0.36079603,30602.0,30601.0,1.13138614]
[1688253674039,0.36079603,30602.0,30601.0,0.40978614]
[1688253674339,0.36079603,30602.0,30601.0,1.13138614]
[1688253677437,0.36079603,30602.0,30601.0,1.11315645]
[1688253678430,0.36079603,30602.0,30601.0,1.13138614]
[1688253679942,0.36079603,30602.0,30601.0,0.40978614]
[1688253680141,0.36079603,30602.0,30601.0,1.13138614]
[1688253682443,0.5238403,30602.0,30601.0,1.13138614]
[1688253682747,0.5254403,30602.0,30601.0,1.13138614]
[1688253685953,0.5254403,30602.0,30601.0,1.11315645]
[1688253686942,0.5254403,30602.0,30601.0,1.13138614]
[1688253687445,0.5254403,30602.0,30601.0,1.19671611]
[1688253687845,0.5254403,30602.0,30601.0,1.13138614]
[1688253693939,0.5235403,30602.0,30601.0,1.13138614]
[1688253695155,0.5235403,30602.0,30601.0,1.19671611]
[1688253695450,0.36049603,30602.0,30601.0,1.19671611]
[1688253698143,0.5235403,30602.0,30601.0,1.19671611]
[1688253698349,0.36049603,30602.0,30601.0,1.19671611]
[1688253698948,0.5235403,30602.0,30601.0,1.19671611]
[1688253699453,0.36049603,30602.0,30601.0,1.19671611]
[1688253703254,0.36049603,30602.0,30601.0,0.47511611]
[1688253703450,0.36049603,30602.0,30601.0,1.19671611]
[1688253703950,0.00929603,30602.0,30601.0,1.19671611]
[1688253704359,0.00929603,30602.0,30601.0,1.22269297]
[1688253708550,0.00929603,30602.0,30601.0,1.17786666]
[1688253709256,0.1723403,30602.0,30601.0,1.17786666]
[1688253710252,0.1723403,30602.0,30601.0,1.11253669]
[1688253712860,0.1723403,30602.0,30601.0,1.13138614]
[1688253713550,0.1723403,30602.0,30601.0,0.40978614]
[1688253713746,0.1723403,30602.0,30601.0,1.13138614]
[1688253713959,0.5235403,30602.0,30601.0,1.13138614]
[1688253714149,0.5235403,30602.0,30601.0,1.12818614]
[1688253717361,0.5254403,30602.0,30601.0,1.12818614]
[1688253717758,0.5254403,30602.0,30601.0,1.19351611]
[1688253717962,0.36239603,30602.0,30601.0,1.19351611]
[1688253719454,0.36239603,30602.0,30601.0,1.12818614]
[1688253719954,0.36239603,30602.0,30601.0,1.1935619]
[1688253720165,0.36239603,30602.0,30601.0,1.12818614]
[1688253722864,0.36239603,30602.0,30601.0,1.17471483]
[1688253723672,0.5254403,30602.0,30601.0,1.17471483]
[1688253724472,0.38200303,30602.0,30601.0,0.741207]
[1688253724961,0.38802147,30602.0,30601.0,0.741207]
[1688253726875,0.38200303,30602.0,30601.0,0.75943669]
[1688253727053,0.38200303,30602.0,30601.0,0.741207]
[1688253727774,0.36239603,30602.0,30601.0,0.741207]
[1688253728967,0.36841447,30602.0,30601.0,0.741207]
[1688253729566,0.36239603,30602.0,30601.0,0.741207]
[1688253731876,0.38802047,30602.0,30601.0,0.741207]
[1688253732772,0.38200203,30602.0,30601.0,0.741207]
[1688253735075,0.38200203,30602.0,30601.0,0.77828614]
[1688253735574,0.54530848,30602.0,30601.0,0.77828614]
[1688253736271,0.54530848,30602.0,30601.0,0.76005645]
[1688253736977,0.54530848,30602.0,30601.0,0.741207]
[1688253737572,0.54530848,30602.0,30601.0,0.75943669]
[1688253737773,0.38200203,30602.0,30601.0,0.741207]
[1688253738179,0.54535638,30602.0,30601.0,0.741207]
[1688253738370,0.54535923,30602.0,30601.0,0.741207]
[1688253739579,0.54535923,30602.0,30601.0,0.75943669]
[1688253740776,0.54535923,30602.0,30601.0,0.741207]
[1688253742179,0.54535923,30602.0,30601.0,0.75943669]
[1688253743081,0.54535923,30602.0,30601.0,0.741207]
[1688253743378,0.54535923,30602.0,30601.0,0.019607]
[1688253743580,0.54535923,30602.0,30601.0,0.741207]
[1688253745177,0.54535923,30602.0,30601.0,0.77828614]
[1688253745372,0.54535923,30602.0,30601.0,0.76005645]
[1688253745582,0.54535923,30602.0,30601.0,0.741207]
[1688253746981,0.54535923,30602.0,30601.0,0.740187]
[1688253747878,0.38200203,30602.0,30601.0,0.740187]
[1688253748878,0.38200203,30602.0,30601.0,0.77726614]
[1688253752284,0.36239603,30602.0,30601.0,0.77726614]
[1688253752986,0.36239603,30602.0,30601.0,0.05566614]
[1688253753286,0.36239603,30602.0,30601.0,1.12746614]
[1688253753581,0.52575294,30602.0,30601.0,1.12746614]
[1688253753782,0.17265294,30602.0,30601.0,1.12746614]
[1688253754777,0.00929603,30602.0,30601.0,1.12746614]
[1688253754983,0.3497,30604.0,30601.0,1.12746614]
[1688253755179,0.3497,30604.0,30603.0,0.3524]
[1688253755387,0.3497,30604.0,30603.0,0.40908614]
[1688253756083,0.3497,30604.0,30603.0,0.39023669]
[1688253756979,0.3497,30604.0,30603.0,0.40908614]
[1688253760088,0.3497,30604.0,30603.0,1.13068614]
[1688253760876,0.3497,30604.0,30603.0,0.40908614]
[1688253761082,0.35471624,30604.0,30603.0,1.13068614]
[1688253762889,0.35471624,30604.0,30603.0,0.40908614]
[1688253763083,0.35471624,30604.0,30603.0,1.13068614]
[1688253765992,0.35471624,30604.0,30603.0,0.40908614]
[1688253766299,0.35471624,30604.0,30603.0,1.13068614]
[1688253768084,0.35471624,30604.0,30603.0,0.40908614]
[1688253768389,0.35471624,30604.0,30603.0,1.11183669]
[1688253769487,0.37432224,30604.0,30603.0,1.11183669]
[1688253771096,0.37432224,30604.0,30603.0,1.13068614]
[1688253772292,0.37432224,30604.0,30603.0,1.11183669]
[1688253773804,0.37772224,30604.0,30603.0,0.75943669]
[1688253774007,0.37772224,30604.0,30603.0,0.77828614]
[1688253774989,0.37772224,30604.0,30603.0,0.41748614]
[1688253779308,0.37772224,30604.0,30603.0,0.05668614]
[1688253779506,0.37772224,30604.0,30603.0,0.41748614]
[1688253781113,0.37772224,30604.0,30603.0,0.05668614]
[1688253781502,0.37772224,30604.0,30603.0,0.41748614]
[1688253781998,0.37772224,30604.0,30603.0,0.05668614]
[1688253782414,0.37772224,30604.0,30603.0,0.41748614]
[1688253783006,0.35811624,30604.0,30603.0,0.41748614]
[1688253783893,0.00501624,30604.0,30603.0,0.77058614]
[1688253785812,0.00501624,30604.0,30603.0,1.13138614]
[1688253793811,0.35471624,30604.0,30603.0,0.40978614]
[1688253794312,0.35471624,30604.0,30603.0,1.13138614]
[1688253796210,0.00501624,30604.0,30603.0,1.13138614]
[1688253797421,0.00501624,30604.0,30603.0,1.15774566]
[1688253801422,0.00501624,30604.0,30603.0,0.43614566]
[1688253801621,0.00501624,30604.0,30603.0,1.15774566]
[1688253801822,0.00501624,30604.0,30603.0,0.43614566]
[1688253802024,0.00501624,30604.0,30603.0,1.15774566]
[1688253802719,0.00501624,30604.0,30603.0,0.43614566]
[1688253803123,0.00501624,30604.0,30603.0,1.15774566]
[1688253803618,0.00501624,30604.0,30603.0,0.43614566]
[1688253803826,0.00501624,30604.0,30603.0,1.15774566]
[1688253804016,0.00501624,30604.0,30603.0,0.43614566]
[1688253804217,0.00501624,30604.0,30603.0,1.15774566]
[1688253806027,0.00501624,30604.0,30603.0,0.43614566]
[1688253806223,0.00501624,30604.0,30603.0,1.15774566]
[1688253807638,0.00501624,30604.0,30603.0,0.43614566]
[1688253807819,0.16839797,30604.0,30603.0,1.15774566]
[1688253814143,0.16839797,30604.0,30603.0,0.43614566]
[1688253814346,0.16839797,30604.0,30603.0,1.15774566]
[1688253817745,0.16839797,30604.0,30603.0,0.43614566]
[1688253817947,0.16839797,30604.0,30603.0,1.15774566]
[1688253818147,0.16839797,30604.0,30603.0,0.43614566]
[1688253818348,0.16839797,30604.0,30603.0,1.15774566]
[1688253820239,0.00501624,30604.0,30603.0,1.15774566]
[1688253822947,0.00501624,30604.0,30603.0,0.43614566]
[1688253823251,0.00501624,30604.0,30603.0,1.15774566]
[1688253827355,0.00501624,30604.0,30603.0,0.43614566]
[1688253827550,0.00501624,30604.0,30603.0,1.15774566]
[1688253831156,0.16842261,30604.0,30603.0,1.15774566]
[1688253832348,0.16842261,30604.0,30603.0,0.43614566]
[1688253832548,0.16842261,30604.0,30603.0,1.15774566]
[1688253832859,0.16842652,30604.0,30603.0,1.15774566]